fUST/lending_fUST_20240805
["ID","MTS","AMOUNT","RATE_DAILY","PERIOD"]
[334246701,1722858647176,-500.0,0.00041643,31]
[334246702,1722858647186,-500.0,0.00041643,31]
[334246703,1722858647195,-500.0,0.00041643,31]
[334246704,1722858647205,-251.34989154,0.00041643,31]
[334246705,1722858647214,-627.80972491,0.00041643,31]
[334246706,1722858647224,-544.11009543,0.00041643,31]
[334246707,1722858647233,-759.11,0.00041643,31]
[334246708,1722858647243,-500.0,0.00041643,31]
[334246709,1722858647253,-956.42,0.00041643,31]
[334246710,1722858647271,-512.02435883,0.00041643,31]
[334246711,1722858647281,-500.0,0.00041643,31]
[334246712,1722858647291,-890.85,0.00041643,31]
[334246713,1722858647301,-465.62799538,0.00041643,31]
[334246714,1722858647311,-500.0,0.00041643,31]
[334246715,1722858647320,-500.0,0.00041643,31]
[334246716,1722858647329,-745.17,0.00041643,31]
[334246717,1722858647343,-500.0,0.00041643,31]
[334246718,1722858647352,-266.4655834,0.00041643,31]
[334246719,1722858647362,-830.63,0.00041643,31]
[334246720,1722858647372,-500.0,0.00041643,31]
[334246721,1722858647381,-972.44,0.00041643,31]
[334246722,1722858647390,-500.0,0.00041643,31]
[334246723,1722858647399,-500.0,0.00041643,31]
[334246724,1722858647409,-500.0,0.00041643,31]
[334246725,1722858647418,-500.0,0.00041643,31]
[334246726,1722858647427,-971.79,0.00041643,31]
[334246727,1722858647437,-500.0,0.00041643,31]
[334246728,1722858647446,-500.0,0.00041643,31]
[334246729,1722858647458,-500.0,0.00041643,31]
[334246730,1722858647467,-575.35487727,0.00041643,31]
[334246731,1722858647477,-500.0,0.00041643,31]
[334246732,1722858647487,-1113.86,0.00041643,31]
[334246733,1722858647497,-640.21462214,0.00041643,31]
[334246734,1722858647507,-500.0,0.00041643,31]
[334246735,1722858647517,-500.0,0.00041643,31]
[334246736,1722858647526,-500.0,0.00041643,31]
[334246737,1722858647536,-1145.14,0.00041643,31]
[334246738,1722858647545,-709.08,0.00041643,31]
[334246739,1722858647554,-500.0,0.00041643,31]
[334246740,1722858647564,-500.0,0.00041643,31]
[334246741,1722858647574,-500.0,0.00041643,31]
[334246742,1722858647586,-500.0,0.00041643,31]
[334246743,1722858647595,-500.0,0.00041643,31]
[334246744,1722858647604,-500.0,0.00041643,31]
[334246745,1722858647613,-500.0,0.00041643,31]
[334246746,1722858647622,-500.0,0.00041643,31]
[334246747,1722858647631,-1087.27,0.00041643,31]
[334246748,1722858647641,-500.0,0.00041643,31]
[334246749,1722858647650,-500.0,0.00041643,31]
[334246750,1722858647660,-500.0,0.00041643,31]
[334246751,1722858647669,-500.0,0.00041643,31]
[334246752,1722858647678,-500.0,0.00041643,31]
[334246753,1722858647688,-786.2,0.00041643,31]
[334246754,1722858647698,-500.0,0.00041643,31]
[334246755,1722858647707,-500.0,0.00041643,31]
[334246756,1722858647717,-970.6,0.00041643,31]
[334246757,1722858647726,-905.22,0.00041643,31]
[334246758,1722858647736,-500.0,0.00041643,31]
[334246759,1722858647746,-776.24,0.00041643,31]
[334246760,1722858647755,-804.68,0.00041643,31]
[334246761,1722858647764,-500.0,0.00041643,31]
[334246762,1722858647773,-500.0,0.00041643,31]
[334246763,1722858647783,-620.17,0.00041643,31]
[334246764,1722858647792,-500.0,0.00041643,31]
[334246765,1722858647801,-500.0,0.00041643,31]
[334246766,1722858647811,-500.0,0.00041643,31]
[334246767,1722858647820,-500.0,0.00041643,31]
[334246768,1722858647830,-500.0,0.00041643,31]
[334246769,1722858647843,-500.0,0.00041643,31]
[334246770,1722858647852,-500.0,0.00041643,31]
[334246771,1722858647862,-781.21,0.00041643,31]
[334246772,1722858647871,-500.0,0.00041643,31]
[334246773,1722858647881,-502.80873224,0.00041643,31]
[334246774,1722858647890,-500.0,0.00041643,31]
[334246775,1722858647899,-500.0,0.00041643,31]
[334246776,1722858647909,-506.94191855,0.00041643,31]
[334246777,1722858647918,-500.0,0.00041643,31]
[334246778,1722858647928,-500.0,0.00041643,31]
[334246779,1722858647937,-500.0,0.00041643,31]
[334246780,1722858647946,-500.0,0.00041643,31]
[334246781,1722858647955,-500.0,0.00041643,31]
[334246782,1722858647964,-1246.16,0.00041643,31]
[334246783,1722858647974,-500.0,0.00041643,31]
[334246784,1722858647983,-500.0,0.00041643,31]
[334246785,1722858647992,-500.0,0.00041643,31]
[334246786,1722858648001,-500.0,0.00041643,31]
[334246787,1722858648011,-191.08169646,0.00041643,31]
[334246788,1722858648021,-567.69,0.00041643,31]
[334246789,1722858648030,-500.0,0.00041643,31]
[334246790,1722858648039,-578.94,0.00041643,31]
[334246791,1722858648050,-1109.93,0.00041643,31]
[334246792,1722858648061,-583.0,0.00041643,31]
[334246793,1722858648071,-1353.58,0.00041643,31]
[334246794,1722858648085,-500.0,0.00041643,31]
[334246795,1722858648095,-851.88,0.00041643,31]
[334246796,1722858648105,-500.0,0.00041643,31]
[334246797,1722858648115,-857.62,0.00041643,31]
[334246798,1722858648128,-628.99534733,0.00041643,31]
[334246799,1722858648138,-2208.56,0.00041643,31]
[334246800,1722858648148,-500.0,0.00041643,31]
[334246801,1722858648160,-500.0,0.00041643,31]
[334246802,1722858648170,-1265.14,0.00041643,31]
[334246803,1722858648179,-500.0,0.00041643,31]
[334246804,1722858648189,-500.0,0.00041643,31]
[334246805,1722858648198,-500.0,0.00041643,31]
[334246806,1722858648209,-500.0,0.00041643,31]
[334246807,1722858648218,-385.60658798,0.00041643,31]
[334246808,1722858648228,-677.4,0.00041643,31]
[334246809,1722858648238,-500.0,0.00041643,31]
[334246810,1722858648248,-500.0,0.00041643,31]
[334246811,1722858648258,-500.0,0.00041643,31]
[334246812,1722858648268,-500.0,0.00041643,31]
[334246813,1722858648278,-538.06,0.00041643,31]
[334246814,1722858648287,-500.0,0.00041643,31]
[334246815,1722858648297,-500.0,0.00041643,31]
[334246816,1722858648307,-868.2,0.00041643,31]
[334246817,1722858648317,-500.0,0.00041643,31]
[334246818,1722858648326,-500.0,0.00041643,31]
[334246819,1722858648338,-500.0,0.00041643,31]
[334246820,1722858648348,-500.0,0.00041643,31]
[334246821,1722858648358,-500.0,0.00041643,31]
[334246822,1722858648367,-1389.5,0.00041643,31]
[334246823,1722858648377,-946.17,0.00041643,31]
[334246824,1722858648387,-585.89,0.00041643,31]
[334246825,1722858648398,-500.0,0.00041643,31]
[334246826,1722858648407,-500.0,0.00041643,31]
[334246827,1722858648417,-500.0,0.00041643,31]
[334246828,1722858648426,-500.0,0.00041643,31]
[334246829,1722858648436,-10660.28,0.00041643,31]
[334246830,1722858648446,-503.1469616,0.00041643,31]
[334246831,1722858648456,-582.55,0.00041643,31]
[334246832,1722858648466,-500.0,0.00041643,31]
[334246833,1722858648476,-1300.75,0.00041643,31]
[334246834,1722858648486,-863.4,0.00041643,31]
[334246835,1722858648495,-500.0,0.00041643,31]
[334246836,1722858648505,-500.0,0.00041643,31]
[334246837,1722858648515,-2570.37,0.00041643,21]
[334246838,1722858648526,-500.0,0.00041643,31]
[334246839,1722858648535,-500.0,0.00041643,31]
[334246840,1722858648546,-500.0,0.00041643,31]
[334246841,1722858648556,-500.0,0.00041643,31]
[334246842,1722858648567,-500.0,0.00041643,31]
[334246843,1722858648577,-1621.97,0.00041643,31]
[334246844,1722858648592,-4054.43,0.00041643,31]
[334246845,1722858648607,-1994.29,0.00041643,31]
[334246846,1722858648617,-1448.49,0.00041643,31]
[334246847,1722858648627,-500.0,0.00041643,31]
[334246848,1722858648637,-500.0,0.00041643,31]
[334246849,1722858648647,-840.38,0.00041643,31]
[334246850,1722858648657,-838.77,0.00041643,31]
[334246851,1722858648666,-526.13041903,0.00041643,31]
[334246852,1722858648677,-1958.07,0.00041643,31]
[334246853,1722858648686,-500.0,0.00041643,31]
[334246854,1722858648696,-1150.09,0.00041643,31]
[334246855,1722858648705,-611.29,0.00041643,31]
[334246856,1722858648715,-500.0,0.00041643,31]
[334246857,1722858648725,-500.0,0.00041643,31]
[334246858,1722858648735,-500.0,0.00041643,31]
[334246859,1722858648746,-1001.78,0.00041643,31]
[334246860,1722858648755,-500.0,0.00041643,31]
[334246861,1722858648766,-500.0,0.00041643,31]
[334246862,1722858648775,-500.0,0.00041643,31]
[334246863,1722858648785,-1614.0,0.00041643,31]
[334246864,1722858648795,-500.0,0.00041643,31]
[334246865,1722858648805,-500.0,0.00041643,31]
[334246866,1722858648816,-513.97,0.00041643,31]
[334246867,1722858648825,-500.0,0.00041643,31]
[334246868,1722858648840,-2620.63,0.00041643,31]
[334246869,1722858648849,-500.0,0.00041643,31]
[334246870,1722858648859,-1190.03,0.00041643,31]
[334246871,1722858648869,-500.0,0.00041643,31]
[334246872,1722858648879,-500.0,0.00041643,31]
[334246873,1722858648889,-500.0,0.00041643,31]
[334246874,1722858648898,-2575.46,0.00041643,31]
[334246875,1722858648908,-901.37,0.00041643,31]
[334246876,1722858648917,-755.19,0.00041643,31]
[334246877,1722858648928,-641.02,0.00041643,31]
[334246878,1722858648938,-500.0,0.00041643,31]
[334246879,1722858648948,-500.0,0.00041643,31]
[334246880,1722858648958,-739.77,0.00041643,31]
[334246881,1722858648968,-500.0,0.00041643,31]
[334246882,1722858648978,-387.64443395,0.00041643,31]
[334246883,1722858648988,-500.0,0.00041643,31]
[334246884,1722858648998,-500.0,0.00041643,31]
[334246885,1722858649009,-500.0,0.00041643,31]
[334246886,1722858649020,-500.0,0.00041643,31]
[334246887,1722858649030,-500.0,0.00041643,31]
[334246888,1722858649041,-717.15,0.00041643,31]
[334246889,1722858649051,-1876.7,0.00041643,31]
[334246890,1722858649063,-500.0,0.00041643,31]
[334246891,1722858649074,-500.0,0.00041643,31]
[334246892,1722858649090,-581.26484348,0.00041643,31]
[334246893,1722858649100,-500.0,0.00041643,31]
[334246894,1722858649111,-500.0,0.00041643,31]
[334246895,1722858649120,-500.0,0.00041643,31]
[334246896,1722858649131,-707.91,0.00041643,31]
[334246897,1722858649141,-500.0,0.00041643,31]
[334246898,1722858649151,-1398.1,0.00041643,31]
[334246899,1722858649163,-562.02,0.00041643,31]
[334246900,1722858649173,-649.45,0.00041643,31]
[334246901,1722858649182,-702.2,0.00041643,31]
[334246902,1722858649192,-7191.63,0.00041643,31]
[334246903,1722858649202,-3672.46,0.00041643,31]
[334246904,1722858649213,-591.62,0.00041643,31]
[334246905,1722858649222,-500.0,0.00041643,31]
[334246906,1722858649232,-5193.88,0.00041643,31]
[334246907,1722858649241,-557.23440025,0.00041643,31]
[334246908,1722858649253,-654.08,0.00041643,31]
[334246909,1722858649263,-1593.52,0.00041643,31]
[334246910,1722858649273,-515.12,0.00041643,31]
[334246911,1722858649282,-500.0,0.00041643,31]
[334246912,1722858649292,-415.23027457,0.00041643,31]
[334246913,1722858649302,-500.0,0.00041643,31]
[334246914,1722858649311,-500.0,0.00041643,31]
[334246915,1722858649321,-5573.7,0.00041643,120]
[334246916,1722858649330,-877.09,0.00041643,31]
[334246917,1722858649345,-2135.54,0.00041643,31]
[334246918,1722858649355,-698.5,0.00041643,31]
[334246919,1722858649365,-1604.52,0.00041643,31]
[334246920,1722858649376,-1099.71,0.00041643,31]
[334246921,1722858649385,-939.19,0.00041643,31]
[334246922,1722858649395,-500.0,0.00041643,31]
[334246923,1722858649405,-545.07,0.00041643,31]
[334246924,1722858649415,-672.37,0.00041643,31]
[334246925,1722858649425,-820.85,0.00041643,31]
[334246926,1722858649435,-500.0,0.00041643,31]
[334246927,1722858649445,-771.21,0.00041643,31]
[334246928,1722858649455,-844.96,0.00041643,31]
[334246929,1722858649466,-200.0,0.00041673,2]
[334246930,1722858649476,-4272.26783226,0.00041817,2]
[334246931,1722858649488,-5000.0,0.00042,42]
[334246932,1722858649497,-514.75644831,0.00042,60]
[334246933,1722858649508,-500.0,0.00042,120]
[334246934,1722858649517,-153.03,0.00042,31]
[334246935,1722858649527,-153.03,0.00042,31]
[334246936,1722858649537,-1156.94944289,0.00042043,28]
[334246937,1722858649547,-4272.26783226,0.00042091,2]
[334246938,1722858649558,-7131.72882016,0.00042181,5]
[334246939,1722858649568,-667.42,0.0004219,60]
[334246940,1722858649578,-667.42,0.0004219,60]
[334246941,1722858649590,-667.42,0.0004219,60]
[334246942,1722858649600,-500.0,0.00042191,31]
[334246943,1722858649610,-500.0,0.00042191,31]
[334246944,1722858649620,-500.0,0.00042191,31]
[334246945,1722858649630,-500.0,0.00042191,31]
[334246946,1722858649641,-500.0,0.00042191,31]
[334246947,1722858649651,-1133.22,0.00042191,31]
[334246948,1722858649661,-619.63425419,0.00042191,31]
[334246949,1722858649671,-500.0,0.00042191,31]
[334246950,1722858649681,-203.1012151,0.00042191,31]
[334246951,1722858649692,-500.0,0.00042191,31]
[334246952,1722858649702,-500.0,0.00042191,31]
[334246953,1722858649712,-1765.13,0.00042191,31]
[334246954,1722858649722,-200.0,0.00042191,7]
[334246955,1722858649731,-557.5,0.00042191,31]
[334246956,1722858649741,-524.78,0.00042191,31]
[334246957,1722858649751,-500.0,0.00042191,31]
[334246958,1722858649760,-500.0,0.00042191,31]
[334246959,1722858649770,-500.0,0.00042191,31]
[334246960,1722858649779,-500.0,0.00042191,31]
[334246961,1722858649789,-565.47,0.00042191,31]
[334246962,1722858649798,-235.33219757,0.00042191,31]
[334246963,1722858649808,-500.0,0.00042191,31]
[334246964,1722858649818,-500.0,0.00042191,31]
[334246965,1722858649828,-566.61,0.00042191,31]
[334246966,1722858649842,-500.0,0.00042191,31]
[334246967,1722858649852,-500.0,0.00042191,31]
[334246968,1722858649862,-500.0,0.00042191,31]
[334246969,1722858649873,-759.11,0.00042191,31]
[334246970,1722858649882,-500.0,0.00042191,31]
[334246971,1722858649892,-956.42,0.00042191,31]
[334246972,1722858649902,-500.0,0.00042191,31]
[334246973,1722858649911,-890.85,0.00042191,31]
[334246974,1722858649921,-500.0,0.00042191,31]
[334246975,1722858649932,-500.0,0.00042191,31]
[334246976,1722858649942,-745.17,0.00042191,31]
[334246977,1722858649951,-500.0,0.00042191,31]
[334246978,1722858649962,-830.63,0.00042191,31]
[334246979,1722858649972,-500.0,0.00042191,31]
[334246980,1722858649982,-972.44,0.00042191,31]
[334246981,1722858649991,-500.0,0.00042191,31]
[334246982,1722858650001,-500.0,0.00042191,31]
[334246983,1722858650011,-500.0,0.00042191,31]
[334246984,1722858650021,-500.0,0.00042191,31]
[334246985,1722858650031,-971.79,0.00042191,31]
[334246986,1722858650040,-500.0,0.00042191,31]
[334246987,1722858650050,-500.0,0.00042191,31]
[334246988,1722858650060,-500.0,0.00042191,31]
[334246989,1722858650073,-500.0,0.00042191,31]
[334246990,1722858650085,-1113.86,0.00042191,31]
[334246991,1722858650095,-500.0,0.00042191,31]
[334246992,1722858650105,-500.0,0.00042191,31]
[334246993,1722858650115,-500.0,0.00042191,31]
[334246994,1722858650125,-1145.14,0.00042191,31]
[334246995,1722858650137,-709.08,0.00042191,31]
[334246996,1722858650147,-500.0,0.00042191,31]
[334246997,1722858650157,-500.0,0.00042191,31]
[334246998,1722858650166,-525.38659622,0.00042191,31]
[334246999,1722858650176,-500.0,0.00042191,31]
[334247000,1722858650186,-500.0,0.00042191,31]
[334247001,1722858650196,-500.0,0.00042191,31]
[334247002,1722858650205,-1087.27,0.00042191,31]
[334247003,1722858650216,-500.0,0.00042191,31]
[334247004,1722858650225,-500.0,0.00042191,31]
[334247005,1722858650235,-500.0,0.00042191,31]
[334247006,1722858650246,-500.0,0.00042191,31]
[334247007,1722858650256,-786.2,0.00042191,31]
[334247008,1722858650265,-500.0,0.00042191,31]
[334247009,1722858650275,-500.0,0.00042191,31]
[334247010,1722858650285,-970.6,0.00042191,31]
[334247011,1722858650295,-905.22,0.00042191,31]
[334247012,1722858650305,-500.0,0.00042191,31]
[334247013,1722858650316,-776.24,0.00042191,31]
[334247014,1722858650326,-804.68,0.00042191,31]
[334247015,1722858650337,-203.68893813,0.00042191,31]
[334247016,1722858650348,-500.0,0.00042191,31]
[334247017,1722858650358,-620.17,0.00042191,31]
[334247018,1722858650369,-500.0,0.00042191,31]
[334247019,1722858650379,-500.0,0.00042191,31]
[334247020,1722858650503,-500.0,0.00042191,31]
[334247021,1722858650527,-500.0,0.00042191,31]
[334247022,1722858650537,-500.0,0.00042191,31]
[334247023,1722858650546,-500.0,0.00042191,31]
[334247024,1722858650555,-500.0,0.00042191,31]
[334247025,1722858650565,-781.21,0.00042191,31]
[334247026,1722858650575,-500.0,0.00042191,31]
[334247027,1722858650587,-517.60272953,0.00042191,31]
[334247028,1722858650596,-500.0,0.00042191,31]
[334247029,1722858650605,-513.48660467,0.00042191,31]
[334247030,1722858650614,-500.0,0.00042191,31]
[334247031,1722858650624,-500.0,0.00042191,31]
[334247032,1722858650633,-500.0,0.00042191,31]
[334247033,1722858650643,-500.0,0.00042191,31]
[334247034,1722858650653,-1246.16,0.00042191,31]
[334247035,1722858650662,-500.0,0.00042191,31]
[334247036,1722858650671,-500.0,0.00042191,31]
[334247037,1722858650681,-567.69,0.00042191,31]
[334247038,1722858650690,-500.0,0.00042191,31]
[334247039,1722858650699,-578.94,0.00042191,31]
[334247040,1722858650709,-1109.93,0.00042191,31]
[334247041,1722858650719,-583.0,0.00042191,31]
[334247042,1722858650728,-1353.58,0.00042191,31]
[334247043,1722858650738,-500.0,0.00042191,31]
[334247044,1722858650747,-851.88,0.00042191,31]
[334247045,1722858650756,-500.0,0.00042191,31]
[334247046,1722858650765,-857.62,0.00042191,31]
[334247047,1722858650774,-2208.56,0.00042191,31]
[334247048,1722858650783,-500.0,0.00042191,31]
[334247049,1722858650792,-1265.14,0.00042191,31]
[334247050,1722858650802,-500.0,0.00042191,31]
[334247051,1722858650811,-500.0,0.00042191,31]
[334247052,1722858650820,-500.0,0.00042191,31]
[334247053,1722858650829,-500.0,0.00042191,31]
[334247054,1722858650843,-677.4,0.00042191,31]
[334247055,1722858650852,-500.0,0.00042191,31]
[334247056,1722858650862,-500.0,0.00042191,31]
[334247057,1722858650871,-538.06,0.00042191,31]
[334247058,1722858650881,-500.0,0.00042191,31]
[334247059,1722858650891,-500.0,0.00042191,31]
[334247060,1722858650901,-868.2,0.00042191,31]
[334247061,1722858650911,-500.0,0.00042191,31]
[334247062,1722858650920,-500.0,0.00042191,31]
[334247063,1722858650930,-500.0,0.00042191,31]
[334247064,1722858650940,-500.0,0.00042191,31]
[334247065,1722858650949,-1389.5,0.00042191,31]
[334247066,1722858650959,-946.17,0.00042191,31]
[334247067,1722858650969,-585.89,0.00042191,31]
[334247068,1722858650980,-500.0,0.00042191,31]
[334247069,1722858650990,-500.0,0.00042191,31]
[334247070,1722858650999,-500.0,0.00042191,31]
[334247071,1722858651009,-500.0,0.00042191,31]
[334247072,1722858651018,-10660.28,0.00042191,31]
[334247073,1722858651028,-582.55,0.00042191,31]
[334247074,1722858651037,-500.0,0.00042191,31]
[334247075,1722858651047,-1300.75,0.00042191,31]
[334247076,1722858651056,-863.4,0.00042191,31]
[334247077,1722858651066,-500.0,0.00042191,31]
[334247078,1722858651077,-500.0,0.00042191,31]
[334247079,1722858651090,-2570.37,0.00042191,21]
[334247080,1722858651099,-500.0,0.00042191,31]
[334247081,1722858651108,-500.0,0.00042191,31]
[334247082,1722858651119,-500.0,0.00042191,31]
[334247083,1722858651129,-500.0,0.00042191,31]
[334247084,1722858651138,-4054.43,0.00042191,31]
[334247085,1722858651149,-1621.97,0.00042191,31]
[334247086,1722858651158,-1994.29,0.00042191,31]
[334247087,1722858651168,-1448.49,0.00042191,31]
[334247088,1722858651177,-500.0,0.00042191,31]
[334247089,1722858651187,-500.0,0.00042191,31]
[334247090,1722858651196,-840.38,0.00042191,31]
[334247091,1722858651206,-838.77,0.00042191,31]
[334247092,1722858651215,-1958.07,0.00042191,31]
[334247093,1722858651225,-500.0,0.00042191,31]
[334247094,1722858651234,-1150.09,0.00042191,31]
[334247095,1722858651245,-611.29,0.00042191,31]
[334247096,1722858651254,-500.0,0.00042191,31]
[334247097,1722858651263,-1001.78,0.00042191,31]
[334247098,1722858651273,-500.0,0.00042191,31]
[334247099,1722858651283,-1614.0,0.00042191,31]
[334247100,1722858651292,-500.0,0.00042191,31]
[334247101,1722858651301,-500.0,0.00042191,31]
[334247102,1722858651310,-513.97,0.00042191,31]
[334247103,1722858651320,-500.0,0.00042191,31]
[334247104,1722858651329,-2620.63,0.00042191,31]
[334247105,1722858651340,-500.0,0.00042191,31]
[334247106,1722858651349,-1190.03,0.00042191,31]
[334247107,1722858651359,-500.0,0.00042191,31]
[334247108,1722858651368,-500.0,0.00042191,31]
[334247109,1722858651378,-2575.46,0.00042191,31]
[334247110,1722858651387,-901.37,0.00042191,31]
[334247111,1722858651396,-755.19,0.00042191,31]
[334247112,1722858651405,-641.02,0.00042191,31]
[334247113,1722858651415,-286.93476102,0.00042191,31]
[334247114,1722858651424,-500.0,0.00042191,31]
[334247115,1722858651434,-739.77,0.00042191,31]
[334247116,1722858651443,-500.0,0.00042191,31]
[334247117,1722858651453,-500.0,0.00042191,31]
[334247118,1722858651462,-500.0,0.00042191,31]
[334247119,1722858651472,-500.0,0.00042191,31]
[334247120,1722858651481,-500.0,0.00042191,31]
[334247121,1722858651491,-1876.7,0.00042191,31]
[334247122,1722858651500,-717.15,0.00042191,31]
[334247123,1722858651510,-500.0,0.00042191,31]
[334247124,1722858651519,-500.0,0.00042191,31]
[334247125,1722858651528,-500.0,0.00042191,31]
[334247126,1722858651537,-500.0,0.00042191,31]
[334247127,1722858651547,-500.0,0.00042191,31]
[334247128,1722858651555,-707.91,0.00042191,31]
[334247129,1722858651564,-500.0,0.00042191,31]
[334247130,1722858651574,-1398.1,0.00042191,31]
[334247131,1722858651584,-562.02,0.00042191,31]
[334247132,1722858651594,-649.45,0.00042191,31]
[334247133,1722858651603,-702.2,0.00042191,31]
[334247134,1722858651613,-7191.63,0.00042191,31]
[334247135,1722858651622,-3672.46,0.00042191,31]
[334247136,1722858651632,-591.62,0.00042191,31]
[334247137,1722858651641,-500.0,0.00042191,31]
[334247138,1722858651651,-5193.88,0.00042191,31]
[334247139,1722858651660,-654.08,0.00042191,31]
[334247140,1722858651669,-1593.52,0.00042191,31]
[334247141,1722858651678,-515.12,0.00042191,31]
[334247142,1722858651688,-500.0,0.00042191,31]
[334247143,1722858651697,-500.0,0.00042191,31]
[334247144,1722858651707,-500.0,0.00042191,31]
[334247145,1722858651716,-5573.7,0.00042191,120]
[334247146,1722858651725,-877.09,0.00042191,31]
[334247147,1722858651734,-2135.54,0.00042191,31]
[334247148,1722858651743,-698.5,0.00042191,31]
[334247149,1722858651753,-1604.52,0.00042191,31]
[334247150,1722858651762,-1099.71,0.00042191,31]
[334247151,1722858651771,-939.19,0.00042191,31]
[334247152,1722858651780,-500.0,0.00042191,31]
[334247153,1722858651790,-545.07,0.00042191,31]
[334247154,1722858651799,-672.37,0.00042191,31]
[334247155,1722858651809,-820.85,0.00042191,31]
[334247156,1722858651818,-500.0,0.00042191,31]
[334247157,1722858651828,-771.21,0.00042191,31]
[334247158,1722858651843,-844.96,0.00042191,31]
[334247159,1722858651853,-151.0,0.00042466,120]
[334247160,1722858651861,-5112.575,0.0004264,120]
[334247161,1722858651871,-151.0,0.00042658,120]
[334247162,1722858651881,-5348.79661512,0.00042729,5]
[334247163,1722858651890,-667.42,0.00042738,60]
[334247164,1722858651900,-667.42,0.00042738,60]
[334247165,1722858651909,-667.42,0.00042738,60]
[334247166,1722858651919,-500.0,0.00042739,31]
[334247167,1722858651928,-500.0,0.00042739,31]
[334247168,1722858651938,-500.0,0.00042739,31]
[334247169,1722858651947,-500.0,0.00042739,31]
[334247170,1722858651958,-500.0,0.00042739,31]
[334247171,1722858651967,-1133.22,0.00042739,31]
[334247172,1722858651977,-500.0,0.00042739,31]
[334247173,1722858651986,-500.0,0.00042739,31]
[334247174,1722858651996,-500.0,0.00042739,31]
[334247175,1722858652005,-1765.13,0.00042739,31]
[334247176,1722858652015,-200.0,0.00042739,7]
[334247177,1722858652024,-557.5,0.00042739,31]
[334247178,1722858652034,-524.78,0.00042739,31]
[334247179,1722858652043,-500.0,0.00042739,31]
[334247180,1722858652052,-500.0,0.00042739,31]
[334247181,1722858652063,-500.0,0.00042739,31]
[334247182,1722858652074,-500.0,0.00042739,31]
[334247183,1722858652087,-565.47,0.00042739,31]
[334247184,1722858652102,-500.0,0.00042739,31]
[334247185,1722858652112,-500.0,0.00042739,31]
[334247186,1722858652127,-566.61,0.00042739,31]
[334247187,1722858652137,-500.0,0.00042739,31]
[334247188,1722858652148,-500.0,0.00042739,31]
[334247189,1722858652159,-500.0,0.00042739,31]
[334247190,1722858652168,-759.11,0.00042739,31]
[334247191,1722858652178,-500.0,0.00042739,31]
[334247192,1722858652187,-956.42,0.00042739,31]
[334247193,1722858652197,-500.0,0.00042739,31]
[334247194,1722858652207,-890.85,0.00042739,31]
[334247195,1722858652217,-500.0,0.00042739,31]
[334247196,1722858652226,-500.0,0.00042739,31]
[334247197,1722858652236,-745.17,0.00042739,31]
[334247198,1722858652246,-500.0,0.00042739,31]
[334247199,1722858652255,-830.63,0.00042739,31]
[334247200,1722858652265,-553.53661661,0.00042739,31]